[Event "*** Titled Tuesday Blitz"]
[Site "Chess.com"]
[Date "2020.05.12"]
[Round "5"]
[White "canary2016"]
[Black "AndrewDGreen"]
[Result "0-1"]
[WhiteElo "1928"]
[BlackElo "2285"]
[TimeControl "180+1"]
[EndTime "10:56:32 PDT"]
[Termination "AndrewDGreen won on time"]

1. Nf3 {[%clk 0:03:00.9]} 1... c5 {[%clk 0:02:59.1]} 2. c4 {[%clk 0:02:59.9]}
2... g6 {[%clk 0:02:58.8]} 3. Nc3 {[%clk 0:02:59.2]} 3... Nc6 {[%clk 0:02:58.2]}
4. e3 {[%clk 0:02:57.1]} 4... Nf6 {[%clk 0:02:50.4]} 5. Be2 {[%clk 0:02:54.7]}
5... Bg7 {[%clk 0:02:50.2]} 6. O-O {[%clk 0:02:54.6]} 6... O-O {[%clk
0:02:50.1]} 7. d4 {[%clk 0:02:54.7]} 7... cxd4 {[%clk 0:02:47.9]} 8. exd4 {[%clk
0:02:54.6]} 8... d5 {[%clk 0:02:48.5]} 9. Be3 {[%clk 0:02:50.5]} 9... dxc4
{[%clk 0:02:44.7]} 10. Bxc4 {[%clk 0:02:49.9]} 10... Bg4 {[%clk 0:02:45.1]} 11.
Be2 {[%clk 0:02:40.7]} 11... Rc8 {[%clk 0:02:39.9]} 12. h3 {[%clk 0:02:38.6]}
12... Bf5 {[%clk 0:02:36.1]} 13. Bd3 {[%clk 0:02:35.4]} 13... Bxd3 {[%clk
0:02:33.8]} 14. Qxd3 {[%clk 0:02:34.7]} 14... Nd5 {[%clk 0:02:19.9]} 15. Rfd1
{[%clk 0:02:26.2]} 15... Na5 {[%clk 0:02:10.9]} 16. Nxd5 {[%clk 0:02:18.3]}
16... Qxd5 {[%clk 0:02:11.8]} 17. b3 {[%clk 0:01:54.7]} 17... Rfd8 {[%clk
0:01:54.2]} 18. Rac1 {[%clk 0:01:50.7]} 18... Nc6 {[%clk 0:01:51.4]} 19. Rc5
{[%clk 0:01:43.6]} 19... Qd7 {[%clk 0:01:43.3]} 20. Rcc1 {[%clk 0:01:40]} 20...
Nb4 {[%clk 0:01:40]} 21. Qd2 {[%clk 0:01:35.2]} 21... Nd5 {[%clk 0:01:31.2]} 22.
a3 {[%clk 0:01:17.8]} 22... Qb5 {[%clk 0:01:21]} 23. Qd3 {[%clk 0:01:11.4]}
23... Qxd3 {[%clk 0:01:13.9]} 24. Rxd3 {[%clk 0:01:11.1]} 24... Rxc1+ {[%clk
0:01:02]} 25. Bxc1 {[%clk 0:01:10.2]} 25... Rc8 {[%clk 0:01:02.5]} 26. Be3
{[%clk 0:00:53.4]} 26... Rc2 {[%clk 0:00:58.6]} 27. Nd2 {[%clk 0:00:50.8]} 27...
f5 {[%clk 0:00:36.1]} 28. Nc4 {[%clk 0:00:48.3]} 28... f4 {[%clk 0:00:33.4]} 29.
Bd2 {[%clk 0:00:45.9]} 29... e6 {[%clk 0:00:21.8]} 30. Nd6 {[%clk 0:00:44.1]}
30... b6 {[%clk 0:00:16.8]} 31. Nb5 {[%clk 0:00:43.1]} 31... a6 {[%clk
0:00:15.4]} 32. Nd6 {[%clk 0:00:43.1]} 32... Bf8 {[%clk 0:00:14.9]} 33. Ne4
{[%clk 0:00:41.3]} 33... Bxa3 {[%clk 0:00:12.9]} 34. g3 {[%clk 0:00:32.4]} 34...
f3 {[%clk 0:00:11.7]} 35. Nd6 {[%clk 0:00:22.5]} 35... Bxd6 {[%clk 0:00:11.3]}
36. Bg5 {[%clk 0:00:20]} 36... Rc3 {[%clk 0:00:09.3]} 37. Rd2 {[%clk 0:00:18.9]}
37... Rc1+ {[%clk 0:00:09]} 38. Kh2 {[%clk 0:00:18.1]} 38... Rc3 {[%clk
0:00:08.1]} 39. Rb2 {[%clk 0:00:17.2]} 39... Kf7 {[%clk 0:00:08.1]} 40. Bd8
{[%clk 0:00:15.1]} 40... b5 {[%clk 0:00:07.8]} 41. Ba5 {[%clk 0:00:14.5]} 41...
Bb4 {[%clk 0:00:07.3]} 42. Bd8 {[%clk 0:00:13.5]} 42... a5 {[%clk 0:00:07.5]}
43. Bg5 {[%clk 0:00:12.8]} 43... a4 {[%clk 0:00:07.6]} 44. Bd2 {[%clk
0:00:12.4]} 44... Rd3 {[%clk 0:00:05.8]} 45. Bg5 {[%clk 0:00:10.4]} 45... a3
{[%clk 0:00:05.1]} 46. Ra2 {[%clk 0:00:09.9]} 46... Rxb3 {[%clk 0:00:05.4]} 47.
h4 {[%clk 0:00:07.6]} 47... Rb2 {[%clk 0:00:05.7]} 48. Ra1 {[%clk 0:00:06.9]}
48... Rxf2+ {[%clk 0:00:05.8]} 49. Kh3 {[%clk 0:00:05.4]} 49... Rb2 {[%clk
0:00:05.6]} 50. Bc1 {[%clk 0:00:04.3]} 50... Rb3 {[%clk 0:00:05.5]} 51. Bg5
{[%clk 0:00:03]} 51... Rc3 {[%clk 0:00:05.3]} 52. Bd2 {[%clk 0:00:02.5]} 52...
Rc2 {[%clk 0:00:05]} 53. Bg5 {[%clk 0:00:01.6]} 53... f2 {[%clk 0:00:04.9]} 54.
Bf4 {[%clk 0:00:01.3]} 54... a2 {[%clk 0:00:05]} 0-1

[Event "*** Titled Tuesday Blitz"]
[Site "Chess.com"]
[Date "2020.05.12"]
[Round "5"]
[White "ckgchess"]
[Black "Orest_Vovk"]
[Result "0-1"]
[WhiteElo "2641"]
[BlackElo "2451"]
[TimeControl "180+1"]
[EndTime "10:56:33 PDT"]
[Termination "Orest_Vovk won by checkmate"]

1. e4 {[%clk 0:03:00.9]} 1... Nc6 {[%clk 0:02:59.6]} 2. Nf3 {[%clk 0:02:57.3]}
2... d5 {[%clk 0:02:58]} 3. exd5 {[%clk 0:02:57.4]} 3... Qxd5 {[%clk 0:02:58.9]}
4. Nc3 {[%clk 0:02:57.7]} 4... Qa5 {[%clk 0:02:59.3]} 5. d4 {[%clk 0:02:57.7]}
5... Bg4 {[%clk 0:02:58.9]} 6. Bb5 {[%clk 0:02:32.3]} 6... O-O-O {[%clk
0:02:57.8]} 7. Bxc6 {[%clk 0:02:29.9]} 7... bxc6 {[%clk 0:02:57.8]} 8. Qe2
{[%clk 0:02:25.7]} 8... Kb7 {[%clk 0:02:52.6]} 9. h3 {[%clk 0:02:22.7]} 9... Qh5
{[%clk 0:02:52.2]} 10. d5 {[%clk 0:01:56.8]} 10... Bxf3 {[%clk 0:02:50]} 11.
dxc6+ {[%clk 0:01:56]} 11... Kxc6 {[%clk 0:02:38.8]} 12. gxf3 {[%clk 0:01:55.2]}
12... e6 {[%clk 0:02:20.1]} 13. Bf4 {[%clk 0:01:24.4]} 13... Kb7 {[%clk
0:01:37.5]} 14. Qc4 {[%clk 0:00:57]} 14... Qa5 {[%clk 0:01:19.5]} 15. b4 {[%clk
0:00:44.2]} 15... Qb6 {[%clk 0:01:15.1]} 16. O-O {[%clk 0:00:42.8]} 16... Rd4
{[%clk 0:01:08]} 17. Qe2 {[%clk 0:00:36.3]} 17... Rxf4 {[%clk 0:01:05.9]} 18. a4
{[%clk 0:00:36.9]} 18... Nf6 {[%clk 0:00:55.1]} 19. a5 {[%clk 0:00:37.1]} 19...
Qc6 {[%clk 0:00:54.1]} 20. Ra3 {[%clk 0:00:29.3]} 20... Bxb4 {[%clk 0:00:35.1]}
21. Rb3 {[%clk 0:00:29.5]} 21... Kc8 {[%clk 0:00:35.1]} 22. Nb5 {[%clk
0:00:16.9]} 22... Kd7 {[%clk 0:00:18.1]} 23. Rd1+ {[%clk 0:00:15.9]} 23... Ke7
{[%clk 0:00:15.9]} 24. Nd4 {[%clk 0:00:16.5]} 24... Rxd4 {[%clk 0:00:14.7]} 25.
Rxd4 {[%clk 0:00:17.4]} 25... Bd6 {[%clk 0:00:15.2]} 26. Rc4 {[%clk 0:00:18]}
26... Qd5 {[%clk 0:00:13.7]} 27. a6 {[%clk 0:00:14.8]} 27... Rd8 {[%clk
0:00:09.2]} 28. Rb7 {[%clk 0:00:14.7]} 28... Qg5+ {[%clk 0:00:09.3]} 29. Kh1
{[%clk 0:00:12.7]} 29... Bf4 {[%clk 0:00:06.3]} 30. Rbb4 {[%clk 0:00:06.5]}
30... Nd5 {[%clk 0:00:06]} 31. Ra4 {[%clk 0:00:04.6]} 31... Bd6 {[%clk
0:00:05.9]} 32. Rg4 {[%clk 0:00:04.4]} 32... Qc1+ {[%clk 0:00:05.9]} 33. Kg2
{[%clk 0:00:04.5]} 33... g6 {[%clk 0:00:06.4]} 34. Rae4 {[%clk 0:00:02.9]} 34...
h5 {[%clk 0:00:05.9]} 35. Rg3 {[%clk 0:00:02.7]} 35... Nf4+ {[%clk 0:00:05.2]}
36. Rxf4 {[%clk 0:00:03]} 36... Qxf4 {[%clk 0:00:06.1]} 37. Qd3 {[%clk
0:00:01.5]} 37... h4 {[%clk 0:00:05.9]} 38. Rg4 {[%clk 0:00:01.6]} 38... Qh2+
{[%clk 0:00:06.5]} 39. Kf1 {[%clk 0:00:02.5]} 39... Qxh3+ {[%clk 0:00:06.8]} 40.
Ke2 {[%clk 0:00:03]} 40... Qh2 {[%clk 0:00:07.3]} 41. Qe4 {[%clk 0:00:03.3]}
41... Qe5 {[%clk 0:00:07.2]} 42. Qxe5 {[%clk 0:00:03.5]} 42... Bxe5 {[%clk
0:00:08.1]} 43. Rxh4 {[%clk 0:00:04.4]} 43... Rd6 {[%clk 0:00:08]} 44. Re4
{[%clk 0:00:05]} 44... Bf6 {[%clk 0:00:07.4]} 45. Rc4 {[%clk 0:00:05.7]} 45...
Kd7 {[%clk 0:00:06.7]} 46. Ra4 {[%clk 0:00:06]} 46... Bd4 {[%clk 0:00:06.4]} 47.
f4 {[%clk 0:00:05.9]} 47... Bb6 {[%clk 0:00:06.9]} 48. f3 {[%clk 0:00:06.3]}
48... Rd5 {[%clk 0:00:07.1]} 49. c4 {[%clk 0:00:05.3]} 49... Rc5 {[%clk
0:00:06.8]} 50. Kd3 {[%clk 0:00:05.3]} 50... Ke7 {[%clk 0:00:07.3]} 51. Ke4
{[%clk 0:00:05.4]} 51... Kf6 {[%clk 0:00:07.6]} 52. Rb4 {[%clk 0:00:05.2]} 52...
Ra5 {[%clk 0:00:07.4]} 53. Kd3 {[%clk 0:00:04.5]} 53... Rxa6 {[%clk 0:00:07.6]}
54. Rb1 {[%clk 0:00:05.4]} 54... Ra3+ {[%clk 0:00:07.6]} 55. Ke4 {[%clk
0:00:05.2]} 55... Re3# {[%clk 0:00:07.5]} 0-1

[Event "*** Titled Tuesday Blitz"]
[Site "Chess.com"]
[Date "2020.05.12"]
[Round "5"]
[White "Alexander_Donchenko"]
[Black "serhanberat_ozdemir"]
[Result "1/2-1/2"]
[WhiteElo "2727"]
[BlackElo "2499"]
[TimeControl "180+1"]
[EndTime "10:56:34 PDT"]
[Termination "Game drawn by repetition"]

1. e4 {[%clk 0:03:00.9]} 1... c5 {[%clk 0:02:59.9]} 2. Nf3 {[%clk 0:03:00.7]}
2... e6 {[%clk 0:03:00.1]} 3. g3 {[%clk 0:02:59.5]} 3... d5 {[%clk 0:02:59.8]}
4. exd5 {[%clk 0:02:59.8]} 4... exd5 {[%clk 0:03:00.7]} 5. Bg2 {[%clk
0:02:59.5]} 5... Nf6 {[%clk 0:02:58.7]} 6. O-O {[%clk 0:02:59.4]} 6... Be7
{[%clk 0:02:58.2]} 7. d4 {[%clk 0:02:59.6]} 7... O-O {[%clk 0:02:58.1]} 8. h3
{[%clk 0:02:56.6]} 8... Nc6 {[%clk 0:02:57.8]} 9. Be3 {[%clk 0:02:54.6]} 9... b6
{[%clk 0:02:47.3]} 10. Nbd2 {[%clk 0:02:27.4]} 10... Bb7 {[%clk 0:02:17.5]} 11.
Re1 {[%clk 0:02:26.6]} 11... Rc8 {[%clk 0:02:15.2]} 12. c3 {[%clk 0:02:26.3]}
12... Bd6 {[%clk 0:02:13.6]} 13. Nb3 {[%clk 0:02:20.3]} 13... Ne7 {[%clk
0:02:09.2]} 14. Ne5 {[%clk 0:02:17.4]} 14... Ne4 {[%clk 0:02:05.7]} 15. dxc5
{[%clk 0:02:11.2]} 15... Bxe5 {[%clk 0:02:03.9]} 16. cxb6 {[%clk 0:02:07.7]}
16... axb6 {[%clk 0:02:01.3]} 17. Bd4 {[%clk 0:02:02.6]} 17... Nc6 {[%clk
0:01:50]} 18. Be3 {[%clk 0:01:54]} 18... f5 {[%clk 0:01:41.5]} 19. f4 {[%clk
0:01:41.9]} 19... Bd6 {[%clk 0:01:35.8]} 20. Qxd5+ {[%clk 0:01:40.8]} 20... Kh8
{[%clk 0:01:34.7]} 21. Rad1 {[%clk 0:01:30.2]} 21... Na5 {[%clk 0:01:32.6]} 22.
Qb5 {[%clk 0:01:23]} 22... Qe7 {[%clk 0:01:24.1]} 23. Bxb6 {[%clk 0:01:08.1]}
23... Nc4 {[%clk 0:01:21.4]} 24. Bd4 {[%clk 0:00:46.9]} 24... Qf7 {[%clk
0:01:06.4]} 25. Na5 {[%clk 0:00:36]} 25... Nxa5 {[%clk 0:01:04.5]} 26. Qxa5
{[%clk 0:00:36.9]} 26... Ra8 {[%clk 0:00:58.9]} 27. Qb6 {[%clk 0:00:27.8]} 27...
Ra6 {[%clk 0:00:56.9]} 28. Qb3 {[%clk 0:00:21.9]} 28... Rxa2 {[%clk 0:00:56.8]}
29. Qxf7 {[%clk 0:00:16.3]} 29... Rxf7 {[%clk 0:00:57.7]} 30. b4 {[%clk
0:00:13.7]} 30... Rxg2+ {[%clk 0:00:54.9]} 31. Kxg2 {[%clk 0:00:14.2]} 31...
Nxc3+ {[%clk 0:00:53.5]} 32. Kf1 {[%clk 0:00:11.5]} 32... Nxd1 {[%clk
0:00:53.1]} 33. Rxd1 {[%clk 0:00:12.1]} 33... Bxb4 {[%clk 0:00:44.5]} 34. Be5
{[%clk 0:00:08.4]} 34... h5 {[%clk 0:00:36.8]} 35. Kf2 {[%clk 0:00:07.1]} 35...
Bc5+ {[%clk 0:00:35.5]} 36. Ke2 {[%clk 0:00:05.7]} 36... Be4 {[%clk 0:00:31.6]}
37. Rc1 {[%clk 0:00:03.7]} 37... Ba3 {[%clk 0:00:20.5]} 38. Rc3 {[%clk
0:00:03.5]} 38... Ra7 {[%clk 0:00:19.3]} 39. Kf2 {[%clk 0:00:02.2]} 39... Bb4
{[%clk 0:00:17.8]} 40. Rc8+ {[%clk 0:00:01.2]} 40... Kh7 {[%clk 0:00:18]} 41.
Rb8 {[%clk 0:00:01.2]} 41... Bc5+ {[%clk 0:00:17.4]} 42. Kf1 {[%clk 0:00:01.2]}
42... Ra2 {[%clk 0:00:13.6]} 43. Rc8 {[%clk 0:00:01.6]} 43... Bg2+ {[%clk
0:00:12.2]} 44. Ke1 {[%clk 0:00:02.2]} 44... Bb4+ {[%clk 0:00:11.3]} 45. Kd1
{[%clk 0:00:02.9]} 45... Bf3+ {[%clk 0:00:10.9]} 46. Kc1 {[%clk 0:00:03.3]}
46... Ba3+ {[%clk 0:00:04.3]} 47. Kb1 {[%clk 0:00:03.4]} 47... Re2 {[%clk
0:00:04.6]} 48. Rc3 {[%clk 0:00:03.8]} 48... Be4+ {[%clk 0:00:05.5]} 49. Ka1
{[%clk 0:00:03.8]} 49... Be7 {[%clk 0:00:04.8]} 50. Rc7 {[%clk 0:00:03.5]} 50...
Bf8 {[%clk 0:00:02.5]} 51. Rc8 {[%clk 0:00:03.9]} 51... Kg8 {[%clk 0:00:03.1]}
52. Bd6 {[%clk 0:00:03.7]} 52... Re1+ {[%clk 0:00:01.6]} 53. Kb2 {[%clk
0:00:03.4]} 53... Re2+ {[%clk 0:00:02.5]} 54. Ka1 {[%clk 0:00:03.7]} 54... Re1+
{[%clk 0:00:02.6]} 55. Kb2 {[%clk 0:00:04.3]} 55... Re2+ {[%clk 0:00:03.5]} 56.
Ka1 {[%clk 0:00:04]} 1/2-1/2

[Event "*** Titled Tuesday Blitz"]
[Site "Chess.com"]
[Date "2020.05.12"]
[Round "5"]
[White "CuattroPrincesses"]
[Black "googlegoom"]
[Result "1-0"]
[WhiteElo "2291"]
[BlackElo "2526"]
[TimeControl "180+1"]
[EndTime "10:56:36 PDT"]
[Termination "CuattroPrincesses won on time"]

1. e4 {[%clk 0:02:49.8]} 1... c5 {[%clk 0:02:58.5]} 2. Nf3 {[%clk 0:02:47.8]}
2... Nc6 {[%clk 0:02:58.8]} 3. d4 {[%clk 0:02:45.8]} 3... cxd4 {[%clk
0:02:59.7]} 4. Nxd4 {[%clk 0:02:45.6]} 4... Qb6 {[%clk 0:03:00.6]} 5. Nb3 {[%clk
0:02:44.8]} 5... Nf6 {[%clk 0:03:01.2]} 6. Bd3 {[%clk 0:02:43.4]} 6... e6 {[%clk
0:03:01.7]} 7. O-O {[%clk 0:02:43.2]} 7... d5 {[%clk 0:03:02.1]} 8. exd5 {[%clk
0:02:41.6]} 8... Nxd5 {[%clk 0:03:02.5]} 9. a3 {[%clk 0:02:40.2]} 9... Be7
{[%clk 0:03:01.7]} 10. c4 {[%clk 0:02:40]} 10... Nf6 {[%clk 0:03:01.9]} 11. Nc3
{[%clk 0:02:39]} 11... a6 {[%clk 0:03:01.2]} 12. Be3 {[%clk 0:02:36.8]} 12...
Qc7 {[%clk 0:03:01.5]} 13. Rc1 {[%clk 0:02:35.5]} 13... O-O {[%clk 0:02:47.4]}
14. Na4 {[%clk 0:02:16]} 14... Nd7 {[%clk 0:02:41.4]} 15. Qc2 {[%clk 0:02:14.7]}
15... h6 {[%clk 0:02:33.1]} 16. f4 {[%clk 0:02:09.8]} 16... b6 {[%clk
0:02:29.3]} 17. Qf2 {[%clk 0:02:04.6]} 17... Rb8 {[%clk 0:02:26.8]} 18. Nc3
{[%clk 0:01:54.7]} 18... Nf6 {[%clk 0:02:22.1]} 19. h3 {[%clk 0:01:53.7]} 19...
Rd8 {[%clk 0:02:17.6]} 20. Rfd1 {[%clk 0:01:51.9]} 20... Bd7 {[%clk 0:01:43.9]}
21. Be2 {[%clk 0:01:48.5]} 21... Be8 {[%clk 0:01:40.8]} 22. Rxd8 {[%clk
0:01:44.1]} 22... Qxd8 {[%clk 0:01:29.9]} 23. Rd1 {[%clk 0:01:33.7]} 23... Qc7
{[%clk 0:01:27.6]} 24. Rc1 {[%clk 0:01:32.3]} 24... Nd7 {[%clk 0:01:21.8]} 25.
Nd5 {[%clk 0:01:25.3]} 25... exd5 {[%clk 0:01:12.1]} 26. cxd5 {[%clk 0:01:24.8]}
26... Nc5 {[%clk 0:01:12.2]} 27. Nxc5 {[%clk 0:01:09.1]} 27... bxc5 {[%clk
0:01:12.4]} 28. dxc6 {[%clk 0:01:01.7]} 28... Qxc6 {[%clk 0:01:03.9]} 29. b4
{[%clk 0:00:56.6]} 29... c4 {[%clk 0:00:56.6]} 30. Bxc4 {[%clk 0:00:50.5]} 30...
Qa4 {[%clk 0:00:55.4]} 31. Qa2 {[%clk 0:00:38.4]} 31... a5 {[%clk 0:00:54.1]}
32. Qb3 {[%clk 0:00:30.1]} 32... axb4 {[%clk 0:00:52]} 33. Qxa4 {[%clk
0:00:27.6]} 33... Bxa4 {[%clk 0:00:50.9]} 34. axb4 {[%clk 0:00:27.6]} 34... Rxb4
{[%clk 0:00:47.9]} 35. Bd5 {[%clk 0:00:26.7]} 35... Rb8 {[%clk 0:00:46.2]} 36.
Rc7 {[%clk 0:00:25.5]} 36... Kf8 {[%clk 0:00:45.7]} 37. Bc5 {[%clk 0:00:23.9]}
37... Bxc5+ {[%clk 0:00:42.9]} 38. Rxc5 {[%clk 0:00:24.8]} 38... Re8 {[%clk
0:00:38.6]} 39. Kf2 {[%clk 0:00:24.4]} 39... g6 {[%clk 0:00:27.7]} 40. Rc7
{[%clk 0:00:22.5]} 40... Re7 {[%clk 0:00:28]} 41. Rxe7 {[%clk 0:00:22.2]} 41...
Kxe7 {[%clk 0:00:28.6]} 42. h4 {[%clk 0:00:21.2]} 42... f6 {[%clk 0:00:26.2]}
43. g3 {[%clk 0:00:20.9]} 43... Bc2 {[%clk 0:00:24.4]} 44. Bf3 {[%clk
0:00:20.3]} 44... Kd6 {[%clk 0:00:24.1]} 45. Be2 {[%clk 0:00:20.6]} 45... Kc5
{[%clk 0:00:23.7]} 46. Ba6 {[%clk 0:00:21.1]} 46... Kd4 {[%clk 0:00:23.9]} 47.
Bc8 {[%clk 0:00:20.9]} 47... Be4 {[%clk 0:00:23.1]} 48. Bd7 {[%clk 0:00:21.4]}
48... Kd3 {[%clk 0:00:22.3]} 49. Bc8 {[%clk 0:00:21.2]} 49... Kd2 {[%clk
0:00:20.5]} 50. Ba6 {[%clk 0:00:21.6]} 50... Bf5 {[%clk 0:00:20.4]} 51. Bb7
{[%clk 0:00:20.8]} 51... Bc2 {[%clk 0:00:19.9]} 52. Kf3 {[%clk 0:00:20.3]} 52...
Bd3 {[%clk 0:00:16.5]} 53. Be4 {[%clk 0:00:19.7]} 53... Kc3 {[%clk 0:00:15]} 54.
Ke3 {[%clk 0:00:17.8]} 54... Bc4 {[%clk 0:00:12.2]} 55. Bxg6 {[%clk 0:00:17.2]}
55... Be6 {[%clk 0:00:11.3]} 56. Ke4 {[%clk 0:00:16.7]} 56... Kc4 {[%clk
0:00:11]} 57. Bf5 {[%clk 0:00:15.8]} 57... Bf7 {[%clk 0:00:10.9]} 58. Bc8 {[%clk
0:00:14.4]} 58... Bg6+ {[%clk 0:00:08.9]} 59. f5 {[%clk 0:00:14.1]} 59... Bf7
{[%clk 0:00:09.1]} 60. Be6+ {[%clk 0:00:13.7]} 1-0

[Event "*** Titled Tuesday Blitz"]
[Site "Chess.com"]
[Date "2020.05.12"]
[Round "5"]
[White "CraiggoryC"]
[Black "fyall777"]
[Result "1-0"]
[WhiteElo "2109"]
[BlackElo "2426"]
[TimeControl "180+1"]
[EndTime "10:56:36 PDT"]
[Termination "CraiggoryC won on time"]

1. e4 {[%clk 0:02:52.4]} 1... c5 {[%clk 0:02:58.6]} 2. Nf3 {[%clk 0:02:50.7]}
2... d6 {[%clk 0:02:58.7]} 3. d4 {[%clk 0:02:51.3]} 3... Nf6 {[%clk 0:02:57.8]}
4. Nc3 {[%clk 0:02:50]} 4... cxd4 {[%clk 0:02:57.7]} 5. Nxd4 {[%clk 0:02:50.9]}
5... a6 {[%clk 0:02:58.1]} 6. Be3 {[%clk 0:02:50.6]} 6... e5 {[%clk 0:02:58.2]}
7. Nb3 {[%clk 0:02:50.2]} 7... Be6 {[%clk 0:02:57.3]} 8. f3 {[%clk 0:02:50.6]}
8... Nc6 {[%clk 0:02:57.1]} 9. Qd2 {[%clk 0:02:51]} 9... d5 {[%clk 0:02:57.3]}
10. exd5 {[%clk 0:02:46.9]} 10... Nxd5 {[%clk 0:02:57.4]} 11. Nxd5 {[%clk
0:02:44.6]} 11... Qxd5 {[%clk 0:02:56.8]} 12. O-O-O {[%clk 0:02:43.6]} 12...
Qxd2+ {[%clk 0:02:56.7]} 13. Rxd2 {[%clk 0:02:42.7]} 13... Rc8 {[%clk
0:02:49.6]} 14. Nc5 {[%clk 0:02:29.4]} 14... Bxc5 {[%clk 0:02:40.4]} 15. Bxc5
{[%clk 0:02:29.2]} 15... Bxa2 {[%clk 0:02:34.5]} 16. g3 {[%clk 0:01:42.9]} 16...
Be6 {[%clk 0:02:32.3]} 17. Kb1 {[%clk 0:01:36.1]} 17... f6 {[%clk 0:02:28.8]}
18. Bd3 {[%clk 0:01:16.6]} 18... Kf7 {[%clk 0:02:27.6]} 19. Rhd1 {[%clk
0:01:09.2]} 19... Rhd8 {[%clk 0:02:27.4]} 20. Bb6 {[%clk 0:01:06.4]} 20... Rd7
{[%clk 0:02:20.3]} 21. Bg6+ {[%clk 0:00:46.6]} 21... Kxg6 {[%clk 0:02:14.1]} 22.
Rxd7 {[%clk 0:00:46]} 22... Bxd7 {[%clk 0:02:14.2]} 23. Rxd7 {[%clk 0:00:46.4]}
23... Nb4 {[%clk 0:02:07.6]} 24. c3 {[%clk 0:00:40.4]} 24... Rc6 {[%clk
0:02:06.6]} 25. Rxb7 {[%clk 0:00:35.4]} 25... Nd5 {[%clk 0:01:58]} 26. Bf2
{[%clk 0:00:31.7]} 26... f5 {[%clk 0:01:55.4]} 27. Kc2 {[%clk 0:00:28.7]} 27...
Rd6 {[%clk 0:01:42.3]} 28. Bc5 {[%clk 0:00:26.7]} 28... Re6 {[%clk 0:01:41.3]}
29. c4 {[%clk 0:00:22.3]} 29... Nf6 {[%clk 0:01:40.1]} 30. b4 {[%clk 0:00:20.5]}
30... e4 {[%clk 0:01:40.4]} 31. fxe4 {[%clk 0:00:17.6]} 31... fxe4 {[%clk
0:01:40.6]} 32. Kd2 {[%clk 0:00:13.9]} 32... Rc6 {[%clk 0:01:18.5]} 33. Rb6
{[%clk 0:00:13]} 33... Rxb6 {[%clk 0:01:14.4]} 34. Bxb6 {[%clk 0:00:13.9]} 34...
Kf5 {[%clk 0:01:12.4]} 35. b5 {[%clk 0:00:12.6]} 35... axb5 {[%clk 0:01:11.8]}
36. cxb5 {[%clk 0:00:13.5]} 36... Ke5 {[%clk 0:01:08.8]} 37. Bg1 {[%clk
0:00:10.2]} 37... Kd5 {[%clk 0:01:05.5]} 38. b6 {[%clk 0:00:09.5]} 38... Nd7
{[%clk 0:01:03.5]} 39. h3 {[%clk 0:00:06.9]} 39... Nb8 {[%clk 0:01:01.1]} 40.
Ke3 {[%clk 0:00:05.2]} 40... Nc6 {[%clk 0:01:01.4]} 41. Kf4 {[%clk 0:00:05.1]}
41... h6 {[%clk 0:00:58.1]} 42. h4 {[%clk 0:00:04.3]} 42... g6 {[%clk
0:00:58.5]} 43. b7 {[%clk 0:00:04.1]} 43... Nb8 {[%clk 0:00:53.9]} 44. Ba7
{[%clk 0:00:03.5]} 44... Nc6 {[%clk 0:00:53.9]} 45. b8=Q {[%clk 0:00:03.7]}
45... Nxb8 {[%clk 0:00:54]} 46. Bxb8 {[%clk 0:00:04.3]} 46... Kd4 {[%clk
0:00:54.6]} 47. Ba7+ {[%clk 0:00:04]} 47... Kd3 {[%clk 0:00:55]} 48. g4 {[%clk
0:00:03.5]} 48... Ke2 {[%clk 0:00:53.6]} 49. Ke5 {[%clk 0:00:02.8]} 49... Kf3
{[%clk 0:00:53.6]} 50. g5 {[%clk 0:00:02.2]} 50... hxg5 {[%clk 0:00:52.7]} 51.
hxg5 {[%clk 0:00:03.1]} 51... Kg4 {[%clk 0:00:51.7]} 52. Kf6 {[%clk 0:00:03.1]}
52... Kh5 {[%clk 0:00:52.1]} 53. Be3 {[%clk 0:00:02.5]} 53... Kg4 {[%clk
0:00:52.3]} 54. Kxg6 {[%clk 0:00:02.4]} 54... Kf3 {[%clk 0:00:52.7]} 55. Bc5
{[%clk 0:00:02.9]} 55... Kf4 {[%clk 0:00:53.1]} 56. Kf6 {[%clk 0:00:02.3]} 56...
e3 {[%clk 0:00:53]} 57. Bxe3+ {[%clk 0:00:01.4]} 57... Kxe3 {[%clk 0:00:53.1]}
58. g6 {[%clk 0:00:02.3]} 58... Ke4 {[%clk 0:00:53.2]} 59. g7 {[%clk 0:00:03.2]}
1-0